bitfinex-derivatives/quotes_SOLF0:USTF0_20251026
["timestamp","ask_amount","ask_price","bid_price","bid_amount"]
[1761504397166,3.68962388,199.36,199.3,2.82]
[1761504397470,3.68962388,199.35,199.3,2.82]
[1761504397669,3.68962388,199.37,199.3,2.82]
[1761504397869,3.68962388,199.36,199.3,2.82]
[1761504398070,3.68962388,199.35,199.3,2.82]
[1761504398272,7.9350148,199.37,199.3,2.82]
[1761504398570,3.68962388,199.36,199.3,2.82]
[1761504398763,3.68962388,199.35,199.3,2.82]
[1761504398962,3.68962388,199.34,199.3,2.82]
[1761504399170,3.68962388,199.36,199.3,2.82]
[1761504399471,3.68962388,199.35,199.3,2.82]
[1761504399664,3.68962388,199.34,199.3,2.82]
[1761504399865,3.68962388,199.36,199.3,2.82]
[1761504400065,3.68962388,199.35,199.3,2.82]
[1761504400271,3.68962388,199.34,199.3,2.82]
[1761504400572,3.68962388,199.36,199.3,2.82]
[1761504400772,3.68962388,199.35,199.3,2.82]
[1761504400970,3.68962388,199.34,199.3,2.82]
[1761504401272,4.67536881,199.37,199.3,2.82]
[1761504401273,3.68962388,199.33,199.3,2.82]
[1761504401476,3.68962388,199.36,199.3,2.82]
[1761504401673,3.68962388,199.35,199.3,2.82]
[1761504401973,3.68962388,199.34,199.3,2.82]
[1761504402174,3.68962388,199.33,199.3,2.82]
[1761504402368,7.93924984,199.36,199.3,2.82]
[1761504402569,3.68962388,199.35,199.3,2.82]
[1761504402768,3.68962388,199.34,199.3,2.82]
[1761504402970,3.68962388,199.33,199.3,2.82]
[1761504403273,3.68962388,199.35,199.3,2.82]
[1761504403474,3.68962388,199.34,199.3,2.82]
[1761504403682,3.68962388,199.33,199.3,2.82]
[1761504403868,3.68962388,199.36,199.3,2.82]
[1761504404068,3.68962388,199.35,199.3,2.82]
[1761504404371,3.68962388,199.34,199.3,2.82]
[1761504404678,3.68962388,199.33,199.3,2.82]
[1761504404973,49.94926548,199.8,199.3,2.82]
[1761504404974,3.68962388,199.36,199.3,2.82]
[1761504405173,3.68962388,199.35,199.3,2.82]
[1761504405471,3.68962388,199.34,199.3,2.82]
[1761504405774,3.68962388,199.33,199.3,2.82]
[1761504405975,4.67536881,199.38,199.3,2.82]
[1761504405976,3.68962388,199.37,199.3,2.82]
[1761504406174,3.68962388,199.36,199.3,2.82]
[1761504406376,3.68962388,199.35,199.3,2.82]
[1761504406674,3.68962388,199.34,199.3,2.82]
[1761504406873,3.68962388,199.33,199.3,2.82]
[1761504407074,3.68962388,199.36,199.3,2.82]
[1761504407274,3.68962388,199.35,199.3,2.82]
[1761504407464,3.68962388,199.34,199.3,2.82]
[1761504407666,3.68962388,199.33,199.3,2.82]
[1761504407975,3.68962388,199.32,199.3,2.82]
[1761504408172,8.93068307,199.36,199.3,2.82]
[1761504408376,3.70472084,199.35,199.3,2.82]
[1761504408672,3.70472084,199.34,199.3,2.82]
[1761504408871,3.70472084,199.33,199.3,2.82]
[1761504409074,3.70472084,199.32,199.3,2.82]
[1761504409278,3.70899978,199.31,199.3,2.82]
[1761504410779,3.70926414,199.31,199.3,2.82]
[1761504429797,4.69610899,199.36,199.33,2.71]
[1761504429992,8.94422949,199.37,199.33,2.71]
[1761504430192,4.69610899,199.37,199.33,2.71]
[1761504430393,8.94309097,199.39,199.33,2.71]
[1761504430702,4.69610899,199.39,199.33,2.71]
[1761504431092,4.69610899,199.39,199.34,2.71]
[1761504432196,4.69610899,199.41,199.34,2.71]
[1761504432398,4.69610899,199.4,199.34,2.71]
[1761504432700,8.92822907,199.42,199.35,2.71]
[1761504433001,4.23212008,199.41,199.35,2.71]
[1761504433996,4.69610899,199.42,199.35,2.71]
[1761504434201,8.92822907,199.43,199.36,2.71]
[1761504434401,4.23212008,199.42,199.36,2.71]
[1761504434603,4.69610899,199.43,199.36,2.71]
[1761504435293,4.23212008,199.43,199.36,2.71]
[1761504436399,4.69610899,199.44,199.36,2.71]
[1761504437101,8.92145331,199.45,199.36,2.71]
[1761504437405,4.22534432,199.44,199.36,2.71]
[1761504437597,4.69610899,199.45,199.36,2.71]
[1761504439305,4.22534432,199.47,199.36,2.71]
[1761504439306,4.69610899,199.46,199.36,2.71]
[1761504439606,4.69610899,199.45,199.36,2.71]
[1761504441109,4.69610899,199.46,199.36,2.71]
[1761504444314,4.69610899,199.45,199.36,2.71]
[1761504447700,8.92145331,199.45,199.36,2.71]
[1761504447904,4.22534432,199.44,199.36,2.71]
[1761504448113,4.69610899,199.45,199.36,2.71]
[1761504450413,4.69610899,199.46,199.36,2.71]
[1761504450909,4.69610899,199.46,199.36,7.2239]
[1761504451114,4.69610899,199.45,199.37,2.71]
[1761504451308,4.69610899,199.46,199.37,2.71]
[1761504454310,4.69610899,199.45,199.37,2.71]
[1761504455012,8.92145331,199.45,199.37,2.71]
[1761504455213,4.22534432,199.44,199.37,2.71]
[1761504456414,4.69610899,199.45,199.37,2.71]
[1761504458110,8.92145331,199.45,199.37,2.71]
[1761504458321,4.22534432,199.44,199.37,2.71]
[1761504459206,4.69610899,199.45,199.37,2.71]
[1761504459906,8.92145331,199.45,199.37,2.71]
[1761504460110,4.22534432,199.44,199.37,2.71]
[1761504461222,4.69610899,199.45,199.37,2.71]
[1761504462316,4.69610899,199.44,199.37,2.71]
[1761504467122,4.69610899,199.43,199.37,2.71]
[1761504472124,4.69610899,199.42,199.37,2.71]
[1761504478231,8.92145331,199.43,199.37,2.71]
[1761504478529,6.22091678,199.46,199.37,2.71]
[1761504478530,4.22534432,199.42,199.37,2.71]
[1761504478734,4.22534432,199.43,199.37,2.71]
[1761504478925,4.69610899,199.44,199.37,2.71]
[1761504479132,4.69610899,199.44,199.38,2.78]
[1761504480832,8.92145331,199.44,199.38,2.78]
[1761504481033,4.22534432,199.43,199.38,2.78]
[1761504481630,4.69610899,199.44,199.38,2.78]
[1761504482131,4.69610899,199.44,199.33,2.78]
[1761504482318,8.92145331,199.46,199.35,2.78]
[1761504482526,4.22534432,199.45,199.35,2.78]
[1761504482725,4.69610899,199.46,199.35,2.78]
[1761504483028,4.69610899,199.46,199.41,2.82]
[1761504483227,8.92145331,199.47,199.41,2.82]
[1761504483430,4.22534432,199.46,199.41,2.82]
[1761504483632,4.69610899,199.47,199.41,2.82]
[1761504484536,8.92145331,199.47,199.41,2.82]
[1761504484725,4.22534432,199.46,199.41,2.82]
[1761504485034,4.69610899,199.47,199.41,2.82]
[1761504485633,8.92145331,199.47,199.41,2.82]
[1761504485834,4.22534432,199.46,199.41,2.82]
[1761504486035,4.69610899,199.47,199.41,2.82]
[1761504486338,8.92145331,199.48,199.42,2.82]
[1761504486537,4.22534432,199.47,199.42,2.82]
[1761504488134,4.69610899,199.48,199.42,2.82]
[1761504489038,8.92145331,199.48,199.42,2.82]
[1761504489340,4.22534432,199.47,199.42,2.82]
[1761504489529,4.69610899,199.48,199.42,2.82]
[1761504491138,4.69610899,199.49,199.42,2.82]
[1761504491738,4.69610899,199.48,199.42,2.82]
[1761504492736,4.69610899,199.49,199.42,2.82]
[1761504498431,4.69610899,199.49,199.35,2.61]
[1761504498632,4.69610899,199.5,199.35,2.61]
[1761504499732,4.69610899,199.5,199.43,2.61]
[1761504500138,4.69610899,199.51,199.43,2.61]
[1761504500339,8.92145331,199.51,199.44,2.61]
[1761504500638,4.22534432,199.5,199.44,2.61]
[1761504500840,4.69610899,199.51,199.44,2.61]
[1761504501939,4.69610899,199.52,199.44,2.61]
[1761504502742,8.92145331,199.54,199.46,2.61]
[1761504502945,4.22534432,199.53,199.46,2.61]
[1761504503140,4.69610899,199.54,199.46,2.61]
[1761504503646,8.92145331,199.54,199.46,2.61]
[1761504503851,4.22534432,199.53,199.46,2.61]
[1761504504042,4.69610899,199.54,199.46,2.61]
[1761504504949,4.69610899,199.53,199.46,2.61]
[1761504505142,4.69610899,199.54,199.46,2.61]
[1761504505342,4.69610899,199.53,199.46,2.61]
[1761504510751,4.69610899,199.54,199.46,2.61]
[1761504510953,8.95668299,199.54,199.46,2.61]
[1761504511252,4.260574,199.53,199.46,2.61]
[1761504511553,4.69610899,199.54,199.46,2.61]
[1761504512450,4.69610899,199.53,199.46,2.61]
[1761504512649,4.260574,199.53,199.46,2.61]
[1761504512953,4.69610899,199.54,199.46,2.61]
[1761504514157,4.69610899,199.53,199.46,2.61]
[1761504514351,4.69610899,199.54,199.46,2.61]
[1761504514553,4.69610899,199.53,199.46,2.61]
[1761504514751,4.69610899,199.54,199.46,2.61]
[1761504516161,4.69610899,199.53,199.46,2.61]
[1761504517765,8.95740331,199.55,199.46,2.61]
[1761504517962,4.26129432,199.54,199.46,2.61]
[1761504518770,4.26129432,199.55,199.46,2.61]
[1761504518968,4.69610899,199.56,199.47,4.5114]
[1761504519167,4.69610899,199.56,199.48,2.71]
[1761504520572,4.69610899,199.55,199.48,2.71]
[1761504520972,4.69610899,199.56,199.48,2.71]
[1761504521974,3.94846504,199.57,199.48,2.71]
[1761504521975,4.69610899,199.55,199.48,2.71]
[1761504523573,4.69610899,199.54,199.48,2.71]
[1761504525572,4.69610899,199.53,199.43,2.71]
[1761504525774,4.69610899,199.52,199.43,2.71]
[1761504526969,4.69610899,199.51,199.43,2.71]
[1761504528181,4.69610899,199.5,199.43,2.71]
[1761504529283,4.69610899,199.48,199.41,2.71]
[1761504532690,4.69610899,199.49,199.41,2.71]
[1761504540891,4.69610899,199.48,199.41,2.71]
[1761504541091,4.69610899,199.47,199.41,2.71]
[1761504542492,4.69610899,199.45,199.33,2.71]
[1761504542694,4.69610899,199.43,199.33,2.71]
[1761504543987,4.69610899,199.43,199.34,2.84]
[1761504544187,4.69610899,199.44,199.34,2.84]
[1761504546486,4.69610899,199.43,199.34,2.84]
[1761504548298,4.69610899,199.44,199.34,2.84]
[1761504548597,4.69610899,199.43,199.34,2.84]
[1761504550198,4.69610899,199.44,199.34,2.84]
[1761504553394,4.69610899,199.45,199.34,2.84]
[1761504553696,4.69610899,199.47,199.34,2.84]
[1761504554298,4.69610899,199.47,199.27,2.59]
[1761504554504,4.69610899,199.49,199.28,2.59]
[1761504555394,4.69610899,199.5,199.29,6.23924599]
[1761504555596,4.69610899,199.5,199.4,2.59]
[1761504556000,4.69610899,199.5,199.4,7.103]
[1761504556199,4.69610899,199.5,199.41,2.59]
[1761504561408,4.69610899,199.51,199.41,2.59]
[1761504562112,4.69610899,199.5,199.41,2.59]
[1761504564715,4.69610899,199.51,199.41,2.59]
[1761504565312,4.69610899,199.52,199.41,2.59]
[1761504565619,4.69610899,199.53,199.41,2.59]
[1761504566206,4.69610899,199.52,199.41,2.59]
[1761504568919,4.69610899,199.51,199.41,2.59]
[1761504572120,4.69610899,199.5,199.41,2.59]
[1761504576024,4.69610899,199.51,199.41,2.59]
[1761504577521,8.97720763,199.51,199.41,2.59]
[1761504577724,4.28109864,199.5,199.41,2.59]
[1761504577916,4.69610899,199.51,199.41,2.59]
[1761504578329,4.69610899,199.5,199.41,2.59]
[1761504579526,8.97720763,199.5,199.41,2.59]
[1761504579730,8.97720763,199.49,199.41,2.59]
[1761504579927,4.28109864,199.48,199.41,2.59]
[1761504581419,4.69610899,199.49,199.41,2.59]
[1761504586639,4.69610899,199.5,199.41,2.59]
[1761504592144,4.69610899,199.49,199.41,2.59]
[1761504596049,4.69610899,199.48,199.41,2.59]
[1761504598242,4.69610899,199.47,199.41,2.59]
[1761504598842,8.97720763,199.47,199.41,2.59]
[1761504599042,4.28109864,199.46,199.41,2.59]
[1761504599248,4.69610899,199.47,199.41,2.59]
[1761504599450,4.69610899,199.46,199.41,2.59]
[1761504599653,8.97720763,199.46,199.41,2.59]
[1761504599855,4.28109864,199.45,199.41,2.59]
[1761504600552,4.69610899,199.44,199.38,2.73]
[1761504600751,4.69610899,199.42,199.38,2.73]
[1761504600945,3.59604769,199.41,199.38,2.73]
[1761504601151,3.59604769,199.4,199.38,2.73]
[1761504601350,3.59604769,199.39,199.38,2.73]
[1761504601649,3.59604769,199.41,199.38,2.73]
[1761504601855,3.59604769,199.4,199.38,2.73]
[1761504602046,4.18507345,199.43,199.38,2.73]
[1761504602047,3.59604769,199.39,199.38,2.73]
[1761504602244,3.59604769,199.42,199.38,2.73]
[1761504602447,3.59604769,199.41,199.38,2.73]
[1761504602648,3.59604769,199.4,199.38,2.73]
[1761504602849,3.59604769,199.39,199.38,2.73]
[1761504603250,3.59604769,199.41,199.38,2.73]
[1761504603453,3.59604769,199.4,199.38,2.73]
[1761504603760,3.59604769,199.39,199.38,2.73]
[1761504604058,3.59604769,199.42,199.38,2.73]
[1761504604260,3.59604769,199.41,199.38,2.73]
[1761504604463,3.59604769,199.4,199.38,2.73]
[1761504604662,3.59604769,199.39,199.38,2.73]
[1761504604862,3.59604769,199.42,199.38,2.73]
[1761504605062,3.59604769,199.41,199.38,2.73]
[1761504605259,3.59604769,199.4,199.38,2.73]
[1761504605554,3.59604769,199.39,199.38,2.73]
[1761504605756,3.59604769,199.42,199.38,2.73]
[1761504605958,3.59604769,199.41,199.38,2.73]
[1761504606162,3.59604769,199.4,199.38,2.73]
[1761504606364,3.59604769,199.39,199.38,2.73]
[1761504606659,3.59604769,199.42,199.38,2.73]
[1761504606860,3.59604769,199.41,199.38,2.73]
[1761504607062,3.59604769,199.4,199.38,2.73]
[1761504607264,7.77806856,199.43,199.38,2.73]
[1761504607462,3.59604769,199.42,199.38,2.73]
[1761504607654,3.59604769,199.41,199.38,2.73]
[1761504607854,3.59604769,199.4,199.38,2.73]
[1761504608053,3.59604769,199.42,199.38,2.73]
[1761504608254,4.18202087,199.43,199.38,2.73]
[1761504608255,3.59604769,199.41,199.38,2.73]
[1761504608455,3.59604769,199.4,199.38,2.73]
[1761504608657,3.59604769,199.39,199.38,2.73]
[1761504608857,7.77806856,199.42,199.38,2.73]
[1761504609063,3.59604769,199.41,199.38,2.73]
[1761504609263,3.59604769,199.4,199.38,2.73]
[1761504609465,3.59604769,199.39,199.38,2.73]
[1761504609665,3.59604769,199.39,199.34,4.5144]
[1761504609866,3.59604769,199.38,199.35,2.62]
[1761504610067,4.18202087,199.41,199.35,2.62]
[1761504610068,3.59604769,199.4,199.35,2.62]
[1761504610266,3.59604769,199.39,199.35,2.62]
[1761504610466,3.59604769,199.38,199.35,2.62]
[1761504610660,3.59604769,199.4,199.35,2.62]
[1761504610858,3.59604769,199.39,199.35,2.62]
[1761504611059,3.59604769,199.38,199.35,2.62]
[1761504611366,3.59604769,199.4,199.35,2.62]
[1761504611565,3.59604769,199.39,199.35,2.62]
[1761504611768,3.59604769,199.4,199.35,2.62]
[1761504612066,3.59604769,199.39,199.35,2.62]
[1761504612269,3.59604769,199.4,199.35,2.62]
[1761504612567,3.59604769,199.39,199.35,2.62]
[1761504612764,3.59604769,199.38,199.35,2.62]
[1761504612965,3.59604769,199.4,199.35,2.62]
[1761504613161,3.59604769,199.39,199.35,2.62]
[1761504613362,3.59604769,199.4,199.35,2.62]
[1761504613563,3.59604769,199.39,199.35,2.62]
[1761504613769,3.59604769,199.41,199.35,2.62]
[1761504614069,3.59604769,199.4,199.35,2.62]
[1761504614267,3.59604769,199.39,199.35,2.62]
[1761504614469,3.59604769,199.41,199.35,2.62]
[1761504614667,3.59604769,199.4,199.35,2.62]
[1761504614867,3.59604769,199.39,199.35,2.62]
[1761504615071,3.59604769,199.4,199.35,2.62]
[1761504615259,3.59604769,199.39,199.35,2.62]
[1761504615464,3.59604769,199.4,199.35,2.62]
[1761504615659,3.59604769,199.39,199.35,2.62]
[1761504615868,3.59604769,199.4,199.35,2.62]
[1761504616069,3.59604769,199.39,199.35,2.62]
[1761504616269,3.59604769,199.4,199.35,2.62]
[1761504616560,3.58950196,199.39,199.35,2.62]
[1761504616864,3.58950196,199.4,199.35,2.62]
[1761504617064,3.58950196,199.41,199.35,2.62]
[1761504617373,3.58950196,199.4,199.35,2.62]
[1761504617669,7.79255552,199.42,199.35,7.1341]
[1761504617869,3.58950196,199.41,199.36,2.62]
[1761504618069,3.58950196,199.4,199.36,2.62]
[1761504618270,3.58950196,199.41,199.36,2.62]
[1761504618568,3.58950196,199.4,199.36,2.62]
[1761504618767,3.58950196,199.41,199.36,2.62]
[1761504619068,3.58950196,199.4,199.36,2.62]
[1761504619268,3.58950196,199.41,199.36,2.62]
[1761504619574,3.58950196,199.4,199.36,2.62]
[1761504619775,3.58950196,199.41,199.36,2.62]
[1761504619977,3.58950196,199.4,199.36,2.62]
[1761504620172,3.58950196,199.41,199.36,2.62]
[1761504620373,3.58950196,199.4,199.36,2.62]
[1761504620573,3.58950196,199.41,199.36,2.62]
[1761504620872,3.58950196,199.4,199.36,2.62]
[1761504621173,3.58950196,199.41,199.36,2.62]
[1761504621375,3.58950196,199.4,199.36,2.62]
[1761504621670,3.58950196,199.41,199.36,2.62]
[1761504621872,3.58950196,199.4,199.36,2.62]
[1761504622068,3.58950196,199.41,199.36,2.62]
[1761504622269,3.58950196,199.4,199.36,2.62]
[1761504622470,3.58950196,199.41,199.36,2.62]
[1761504622676,3.58950196,199.4,199.36,2.62]
[1761504622976,3.58950196,199.41,199.36,2.62]
[1761504623170,3.58950196,199.4,199.36,2.62]
[1761504623371,3.58950196,199.41,199.36,2.62]
[1761504623573,3.58950196,199.4,199.36,2.62]
[1761504623771,3.58950196,199.41,199.36,2.62]
[1761504623977,3.58950196,199.4,199.36,2.62]
[1761504624176,3.58950196,199.41,199.36,2.62]
[1761504624377,3.58950196,199.4,199.36,2.62]
[1761504624674,3.58915979,199.41,199.36,2.62]
[1761504624869,3.58915979,199.4,199.36,2.62]
[1761504625069,3.58915979,199.41,199.36,2.62]
[1761504625277,3.58915979,199.4,199.36,2.62]
[1761504625476,3.58915979,199.42,199.36,2.62]
[1761504625779,3.58915979,199.41,199.36,2.62]
[1761504625974,3.58915979,199.4,199.36,2.62]
[1761504626176,3.58915979,199.41,199.36,2.62]
[1761504626375,3.58915979,199.4,199.36,2.62]
[1761504626576,3.58915979,199.41,199.36,2.62]
[1761504626774,3.58915979,199.4,199.36,2.62]
[1761504627079,3.58915979,199.41,199.36,2.62]
[1761504627376,3.58915979,199.4,199.36,2.62]
[1761504627572,3.58915979,199.41,199.36,2.62]
[1761504627774,3.58915979,199.4,199.36,2.62]
[1761504627975,3.58915979,199.39,199.36,2.62]
[1761504628174,3.58915979,199.4,199.36,2.62]
[1761504628380,3.58915979,199.39,199.36,2.62]
[1761504628570,3.58915979,199.4,199.36,2.62]
[1761504628981,7.92033576,199.43,199.36,2.62]
[1761504629280,3.58915979,199.42,199.36,2.62]
[1761504629581,3.58915979,199.41,199.36,2.62]
[1761504629785,3.58915979,199.4,199.36,2.62]
[1761504629978,3.58915979,199.41,199.36,2.62]
[1761504630275,3.58915979,199.4,199.36,2.62]
[1761504630476,3.58915979,199.41,199.36,2.62]
[1761504630677,3.58915979,199.4,199.36,2.62]
[1761504630880,3.58915979,199.41,199.36,2.62]
[1761504631085,3.58915979,199.4,199.36,2.62]
[1761504631272,3.58915979,199.41,199.36,2.62]
[1761504631474,3.58915979,199.4,199.36,2.62]
[1761504631682,3.58915979,199.41,199.36,2.62]
[1761504631884,3.58915979,199.4,199.36,2.62]
[1761504632180,3.58915979,199.41,199.36,2.62]
[1761504632478,3.58915979,199.4,199.36,2.62]
[1761504632779,3.58915979,199.41,199.36,2.62]
[1761504632979,3.58915979,199.4,199.36,2.62]
[1761504633182,3.58915979,199.39,199.36,2.62]
[1761504633383,7.85699555,199.42,199.36,2.62]
[1761504633578,3.58915979,199.41,199.36,2.62]
[1761504633788,3.58915979,199.4,199.36,2.62]
[1761504634082,3.58915979,199.39,199.36,2.62]
[1761504634282,3.58915979,199.41,199.36,2.62]
[1761504634477,3.58915979,199.4,199.36,2.62]
[1761504634675,3.58915979,199.41,199.36,2.62]
[1761504634876,3.58915979,199.4,199.36,2.62]
[1761504635073,3.58915979,199.41,199.36,2.62]
[1761504635273,3.58915979,199.4,199.36,2.62]
[1761504635477,3.58915979,199.41,199.36,2.62]
[1761504635679,3.58915979,199.4,199.36,2.62]
[1761504635879,3.58915979,199.41,199.36,2.62]
[1761504636185,3.58915979,199.4,199.36,2.62]
[1761504636373,3.58915979,199.41,199.36,2.62]
[1761504636578,3.58915979,199.4,199.36,2.62]
[1761504636782,3.58915979,199.41,199.36,2.62]
[1761504636983,3.58915979,199.4,199.36,2.62]
[1761504637283,3.58915979,199.39,199.36,2.62]
[1761504637582,3.58915979,199.41,199.36,2.62]
[1761504637782,3.58915979,199.4,199.36,2.62]
[1761504637981,3.58915979,199.39,199.36,2.62]
[1761504638183,3.58915979,199.41,199.36,2.62]
[1761504638480,3.58915979,199.4,199.36,2.62]
[1761504638788,3.58915979,199.39,199.36,2.62]
[1761504639086,3.58915979,199.41,199.36,2.62]
[1761504639289,3.58915979,199.4,199.36,2.62]
[1761504639479,3.58915979,199.39,199.36,2.62]
[1761504639678,3.58915979,199.41,199.36,2.62]
[1761504639979,3.58915979,199.4,199.36,2.62]
[1761504640179,3.58915979,199.39,199.36,2.62]
[1761504640379,3.58915979,199.41,199.36,2.62]
[1761504640582,3.58915979,199.4,199.37,2.78]
[1761504640783,3.58915979,199.39,199.37,2.78]
[1761504640982,3.58915979,199.38,199.37,2.78]
[1761504641290,3.58915979,199.41,199.37,2.78]
[1761504641493,3.58915979,199.4,199.37,2.78]
[1761504641791,3.58915979,199.41,199.37,2.78]
[1761504642085,3.58915979,199.4,199.38,2.78]
[1761504642285,4.68394324,199.46,199.38,2.78]
[1761504643092,4.68394324,199.46,199.39,2.78]
[1761504643487,4.68394324,199.46,199.33,6.24956063]
[1761504643791,4.68394324,199.46,199.35,2.78]
[1761504644992,4.68394324,199.46,199.4,2.78]
[1761504648191,4.68394324,199.45,199.37,7.2937]
[1761504648391,4.68394324,199.45,199.38,2.78]
[1761504648790,8.95784393,199.45,199.38,2.78]
[1761504648990,4.27390069,199.44,199.38,2.78]
[1761504649295,4.68394324,199.45,199.38,2.78]
[1761504649497,4.68394324,199.45,199.38,7.2934]
[1761504649689,4.68394324,199.45,199.39,2.78]
[1761504659290,8.95784393,199.45,199.39,2.78]
[1761504659503,4.27390069,199.44,199.39,2.78]
[1761504659700,4.68394324,199.45,199.39,2.78]
[1761504666403,4.16674282,199.47,199.4,2.77]
[1761504666601,4.68394324,199.48,199.4,2.77]
[1761504667501,4.68394324,199.47,199.4,2.77]
[1761504667702,4.68394324,199.48,199.4,2.77]
[1761504668097,4.68394324,199.48,199.42,2.77]
[1761504669008,4.68394324,199.49,199.42,2.77]
[1761504669307,8.85068606,199.5,199.42,2.77]
[1761504669501,8.85068606,199.49,199.42,2.77]
[1761504669700,4.16674282,199.48,199.42,2.77]
[1761504670899,4.68394324,199.5,199.42,2.77]
[1761504671301,4.68394324,199.5,199.43,2.65]
[1761504671504,8.8475014,199.5,199.43,2.65]
[1761504671705,4.16355816,199.49,199.43,2.65]
[1761504672401,4.68394324,199.5,199.43,2.65]
[1761504673008,8.8475014,199.51,199.43,2.65]
[1761504673209,4.16355816,199.5,199.43,2.65]
[1761504673404,4.68394324,199.51,199.43,2.65]
[1761504673607,8.8475014,199.51,199.43,2.65]
[1761504673817,4.16355816,199.5,199.44,2.65]
[1761504674011,4.68394324,199.52,199.44,2.65]
[1761504674709,8.84542221,199.52,199.44,2.65]
[1761504674918,4.16147897,199.51,199.44,2.65]
[1761504675213,4.68394324,199.53,199.45,2.65]
[1761504676413,4.68394324,199.54,199.45,2.65]
[1761504676606,8.84438522,199.54,199.45,2.65]
[1761504676812,4.16044198,199.53,199.45,2.65]
[1761504677016,4.68394324,199.54,199.45,2.65]
[1761504681512,8.84438522,199.54,199.45,2.65]
[1761504681713,4.16044198,199.53,199.45,2.65]
[1761504681915,4.68394324,199.54,199.45,2.65]
[1761504689427,4.68394324,199.53,199.45,2.65]
[1761504689826,4.16044198,199.54,199.45,2.65]
[1761504689827,8.84438522,199.54,199.45,2.65]
[1761504690027,4.31417221,199.53,199.45,2.65]
[1761504690227,4.31417221,199.54,199.45,2.65]
[1761504691222,8.99811545,199.54,199.45,2.65]
[1761504691423,4.31417221,199.53,199.45,2.65]
[1761504692519,4.68394324,199.54,199.45,2.65]
[1761504694025,4.6766481,199.54,199.45,2.65]
[1761504698534,8.99082031,199.54,199.45,2.65]
[1761504698736,4.31417221,199.53,199.45,2.65]
[1761504700140,4.6766481,199.54,199.45,2.65]
[1761504700534,8.99082031,199.54,199.45,2.65]
[1761504700837,4.31417221,199.53,199.45,2.65]
[1761504701039,4.6766481,199.54,199.45,2.65]
[1761504701933,8.99082031,199.54,199.45,2.65]
[1761504702146,4.31417221,199.53,199.45,2.65]
[1761504702442,4.6766481,199.54,199.45,2.65]
[1761504702943,8.99082031,199.54,199.45,2.65]
[1761504703240,4.31417221,199.53,199.45,2.65]
[1761504703743,8.99082031,199.53,199.45,2.65]
[1761504703934,4.31417221,199.52,199.45,2.65]
[1761504704237,4.6766481,199.53,199.45,2.65]
[1761504704638,8.99082031,199.53,199.45,2.65]
[1761504704836,4.31417221,199.52,199.45,2.65]
[1761504705037,4.6766481,199.53,199.45,2.65]
[1761504705341,8.99082031,199.54,199.45,2.65]
[1761504705541,8.99082031,199.53,199.45,2.65]
[1761504705742,4.31417221,199.52,199.45,2.65]
[1761504706239,4.6766481,199.53,199.45,2.65]
[1761504706840,8.99082031,199.53,199.45,2.65]
[1761504707043,4.31417221,199.52,199.45,2.65]
[1761504707237,4.6766481,199.53,199.45,2.65]
[1761504708642,8.99082031,199.53,199.45,2.65]
[1761504708844,4.31417221,199.52,199.45,2.65]
[1761504709043,4.6766481,199.53,199.45,2.65]
[1761504709245,4.6766481,199.52,199.45,2.65]
[1761504710046,4.6766481,199.53,199.45,2.65]
[1761504710345,4.6766481,199.52,199.45,2.65]
[1761504711647,8.99082031,199.52,199.45,2.65]
[1761504711848,4.31417221,199.51,199.45,2.65]
[1761504713049,4.6766481,199.52,199.45,2.65]